fUST/lending_fUST_20250608
["ID","MTS","AMOUNT","RATE_DAILY","PERIOD"]
[364972373,1749370256378,-1064.96112719,0.0002246,2]
[364972374,1749370256388,-440.0,0.00022465,4]
[364972375,1749370256399,-500.0,0.00022465,2]
[364972376,1749370256409,-440.0,0.00022465,4]
[364972377,1749370256419,-440.0,0.00022465,4]
[364972378,1749370256428,-440.0,0.00022465,4]
[364972379,1749370256439,-791.26,0.00022465,4]
[364972380,1749370256449,-1098.08,0.00022465,4]
[364972381,1749370256459,-440.0,0.00022465,4]
[364972382,1749370256470,-2602.26,0.00022465,4]
[364972383,1749370256479,-440.0,0.00022465,4]
[364972384,1749370256489,-440.0,0.00022465,4]
[364972385,1749370256500,-500.16,0.00022465,4]
[364972386,1749370256510,-440.0,0.00022465,4]
[364972387,1749370256519,-1193.65,0.00022465,4]
[364972388,1749370256530,-481.17,0.00022465,4]
[364972389,1749370256540,-1228.34,0.00022465,4]
[364972390,1749370256551,-440.0,0.00022465,4]
[364972391,1749370256561,-440.0,0.00022465,4]
[364972392,1749370256570,-440.0,0.00022465,4]
[364972393,1749370256581,-440.0,0.00022465,4]
[364972394,1749370256592,-440.0,0.00022465,4]
[364972395,1749370256602,-1252.61,0.00022465,4]
[364972396,1749370256612,-522.81,0.00022465,4]
[364972397,1749370256623,-440.0,0.00022465,4]
[364972398,1749370256634,-440.0,0.00022465,4]
[364972399,1749370256644,-681.62,0.00022465,2]
[364972400,1749370256654,-2207.65,0.00022465,4]
[364972401,1749370256665,-3194.87,0.00022465,4]
[364972402,1749370256674,-1304.44,0.00022465,4]
[364972403,1749370256685,-3087.95,0.00022465,4]
[364972404,1749370256695,-908.71,0.00022465,4]
[364972405,1749370256704,-915.87,0.00022465,4]
[364972406,1749370256714,-3150.35,0.00022465,4]
[364972407,1749370256725,-3113.45,0.00022465,4]
[364972408,1749370256735,-440.0,0.00022465,4]
[364972409,1749370256745,-440.0,0.00022465,4]
[364972410,1749370256755,-1725.61,0.00022465,4]
[364972411,1749370256766,-934.54,0.00022465,4]
[364972412,1749370256776,-2695.16,0.00022465,4]
[364972413,1749370256786,-440.0,0.00022465,4]
[364972414,1749370256796,-1018.44,0.00022465,4]
[364972415,1749370256807,-440.0,0.00022465,4]
[364972416,1749370256818,-1024.06,0.00022465,4]
[364972417,1749370256829,-800.0,0.00022486,2]
[364972418,1749370256840,-1000.0,0.00022521,2]
[364972419,1749370256855,-1001.54662461,0.00022521,2]
[364972420,1749370256866,-1002.14087963,0.00022521,2]
[364972421,1749370256882,-1001.73158183,0.00022521,2]
[364972422,1749370256907,-1000.0,0.00022521,2]
[364972423,1749370256922,-541.27743962,0.00022521,2]
[364972424,1749370256942,-1000.0,0.00022521,2]
[364972425,1749370256962,-503.13190723,0.00022521,2]
[364972426,1749370256981,-571.66149766,0.00022521,2]
[364972427,1749370257001,-963.0,0.00022594,2]
[364972428,1749370257019,-709.0,0.00022594,2]
[364972429,1749370257035,-2223.0,0.00022594,2]
[364972430,1749370257055,-405.0,0.00022594,2]
[364972431,1749370257069,-472.93256885,0.00022666,71]
[364972432,1749370257084,-12500.0,0.00022686,3]
[364972433,1749370257101,-12500.0,0.00022695,3]
[364972434,1749370257120,-842.5625,0.000227,3]
[364972435,1749370257141,-11853.97844947,0.000227,3]
[364972436,1749370257159,-12500.0,0.00022704,3]
[364972437,1749370257171,-12500.0,0.00022713,3]
[364972438,1749370257188,-3208.04,0.00022718,2]
[364972439,1749370257207,-213.05153702,0.0002272,3]
[364972440,1749370257220,-12500.0,0.00022721,3]
[364972441,1749370257236,-12500.0,0.0002273,3]
[364972442,1749370257249,-12500.0,0.00022739,3]
[364972443,1749370257263,-440.0,0.00022739,4]
[364972444,1749370257279,-12500.0,0.00022739,3]
[364972445,1749370257295,-440.0,0.00022739,4]
[364972446,1749370257311,-440.0,0.00022739,4]
[364972447,1749370257326,-440.0,0.00022739,4]
[364972448,1749370257342,-500.0,0.00022739,6]
[364972449,1749370257357,-791.26,0.00022739,4]
[364972450,1749370257371,-1098.08,0.00022739,4]
[364972451,1749370257386,-355.54733,0.00022739,4]
[364972452,1749370257401,-2602.26,0.00022739,4]
[364972453,1749370257416,-440.0,0.00022739,4]
[364972454,1749370257431,-440.0,0.00022739,4]
[364972455,1749370257446,-500.16,0.00022739,4]
[364972456,1749370257460,-440.0,0.00022739,4]
[364972457,1749370257474,-1193.65,0.00022739,4]
[364972458,1749370257489,-481.17,0.00022739,4]
[364972459,1749370257503,-1228.34,0.00022739,4]
[364972460,1749370257517,-440.0,0.00022739,4]
[364972461,1749370257533,-440.0,0.00022739,4]
[364972462,1749370257547,-440.0,0.00022739,4]
[364972463,1749370257562,-440.0,0.00022739,4]
[364972464,1749370257578,-440.0,0.00022739,4]
[364972465,1749370257593,-1252.61,0.00022739,4]
[364972466,1749370257609,-522.81,0.00022739,4]
[364972467,1749370257623,-440.0,0.00022739,4]
[364972468,1749370257638,-440.0,0.00022739,4]
[364972469,1749370257652,-681.62,0.00022739,2]
[364972470,1749370257666,-2207.65,0.00022739,4]
[364972471,1749370257681,-3194.87,0.00022739,4]
[364972472,1749370257695,-1304.44,0.00022739,4]
[364972473,1749370257712,-3087.95,0.00022739,4]
[364972474,1749370257728,-908.71,0.00022739,4]
[364972475,1749370257743,-915.87,0.00022739,4]
[364972476,1749370257758,-3150.35,0.00022739,4]
[364972477,1749370257773,-3113.45,0.00022739,4]
[364972478,1749370257788,-440.0,0.00022739,4]
[364972479,1749370257804,-440.0,0.00022739,4]
[364972480,1749370257818,-1725.61,0.00022739,4]
[364972481,1749370257833,-934.54,0.00022739,4]
[364972482,1749370257852,-2695.16,0.00022739,4]
[364972483,1749370257864,-440.0,0.00022739,4]
[364972484,1749370257875,-1018.44,0.00022739,4]
[364972485,1749370258039,-440.0,0.00022739,4]
[364972486,1749370258050,-1024.06,0.00022739,4]
[364972487,1749370258060,-1800.0,0.00022751,2]
[364972488,1749370258070,-1500.0,0.00022751,2]
[364972489,1749370258080,-1500.0,0.00022751,2]
[364972490,1749370258089,-1007.47350341,0.00022751,2]
[364972491,1749370258099,-1501.31417441,0.00022751,2]
[364972492,1749370258110,-478.05579471,0.00022751,2]
[364972493,1749370258120,-500.0,0.00022789,2]
[364972494,1749370258130,-160.0,0.00022796,4]
[364972495,1749370258140,-1018.17,0.00022826,2]
[364972496,1749370258150,-1002.06786853,0.00022833,2]
[364972497,1749370258160,-1005.58408614,0.00022833,2]
[364972498,1749370258171,-1500.0,0.00022839,2]
[364972499,1749370258181,-502.56944552,0.00022871,2]
[364972500,1749370258191,-1500.0,0.00022871,2]
[364972501,1749370258201,-500.0,0.00022885,2]
[364972502,1749370258211,-500.0,0.00022898,2]
[364972503,1749370258220,-11063.36847332,0.00022901,2]
[364972504,1749370258229,-188.0,0.00023,5]
[364972505,1749370258240,-160.0,0.00023,3]
[364972506,1749370258251,-160.0,0.00023,3]
[364972507,1749370258261,-423.98131849,0.00023,3]
[364972508,1749370258270,-160.0,0.00023,3]
[364972509,1749370258281,-229.60437222,0.00023,3]
[364972510,1749370258290,-155.0,0.00023,7]
[364972511,1749370258300,-5000.0,0.00023002,2]
[364972512,1749370258310,-440.0,0.00023013,4]
[364972513,1749370258320,-500.0,0.00023013,2]
[364972514,1749370258329,-581.25053266,0.00023013,4]
[364972515,1749370258339,-440.0,0.00023013,4]
[364972516,1749370258350,-791.26,0.00023013,4]
[364972517,1749370258361,-1098.08,0.00023013,4]
[364972518,1749370258371,-2602.26,0.00023013,4]
[364972519,1749370258381,-451.81866762,0.00023013,4]
[364972520,1749370258391,-440.0,0.00023013,4]
[364972521,1749370258401,-500.16,0.00023013,4]
[364972522,1749370258411,-440.0,0.00023013,4]
[364972523,1749370258421,-1193.65,0.00023013,4]
[364972524,1749370258431,-481.17,0.00023013,4]
[364972525,1749370258442,-1228.34,0.00023013,4]
[364972526,1749370258452,-440.0,0.00023013,4]
[364972527,1749370258463,-440.0,0.00023013,4]
[364972528,1749370258473,-440.0,0.00023013,4]
[364972529,1749370258484,-440.0,0.00023013,4]
[364972530,1749370258494,-1252.61,0.00023013,4]
[364972531,1749370258504,-522.81,0.00023013,4]
[364972532,1749370258514,-440.0,0.00023013,4]
[364972533,1749370258524,-440.0,0.00023013,4]
[364972534,1749370258534,-681.62,0.00023013,2]
[364972535,1749370258544,-2207.65,0.00023013,4]
[364972536,1749370258554,-3194.87,0.00023013,4]
[364972537,1749370258564,-1304.44,0.00023013,4]
[364972538,1749370258574,-3087.95,0.00023013,4]
[364972539,1749370258584,-908.71,0.00023013,4]
[364972540,1749370258594,-915.87,0.00023013,4]
[364972541,1749370258604,-3150.35,0.00023013,4]
[364972542,1749370258614,-3113.45,0.00023013,4]
[364972543,1749370258624,-440.0,0.00023013,4]
[364972544,1749370258633,-440.0,0.00023013,4]
[364972545,1749370258644,-1725.61,0.00023013,4]
[364972546,1749370258654,-934.54,0.00023013,4]
[364972547,1749370258665,-2695.16,0.00023013,4]
[364972548,1749370258675,-440.0,0.00023013,4]
[364972549,1749370258685,-1018.44,0.00023013,4]
[364972550,1749370258696,-440.0,0.00023013,4]
[364972551,1749370258706,-1024.06,0.00023013,4]
[364972552,1749370258716,-172.0,0.00023014,7]
[364972553,1749370258725,-1500.0,0.00023068,2]
[364972554,1749370258735,-1008.73643888,0.00023068,2]
[364972555,1749370258745,-545.16430353,0.00023068,2]
[364972556,1749370258756,-1200.0,0.00023075,2]
[364972557,1749370258766,-823.0,0.0002311,2]
[364972558,1749370258775,-823.0,0.0002311,2]
[364972559,1749370258785,-2200.0,0.00023137,2]
[364972560,1749370258795,-120396.21,0.000232,7]
[364972561,1749370258804,-2000.0,0.00023241,3]
[364972562,1749370258814,-500.82272851,0.00023251,2]
[364972563,1749370258824,-440.0,0.00023287,4]
[364972564,1749370258834,-440.0,0.00023287,4]
[364972565,1749370258844,-410.74096118,0.00023287,7]
[364972566,1749370258857,-791.26,0.00023287,4]
[364972567,1749370258867,-1098.08,0.00023287,4]
[364972568,1749370258876,-2602.26,0.00023287,4]
[364972569,1749370258887,-440.0,0.00023287,4]
[364972570,1749370258897,-500.16,0.00023287,4]
[364972571,1749370258906,-440.0,0.00023287,4]
[364972572,1749370258918,-1193.65,0.00023287,4]
[364972573,1749370258929,-481.17,0.00023287,4]
[364972574,1749370258939,-1228.34,0.00023287,4]
[364972575,1749370258949,-335.69668267,0.00023287,4]
[364972576,1749370258959,-414.70088943,0.00023287,4]
[364972577,1749370258969,-440.0,0.00023287,4]
[364972578,1749370258979,-440.0,0.00023287,4]
[364972579,1749370258988,-1252.61,0.00023287,4]
[364972580,1749370258998,-522.81,0.00023287,4]
[364972581,1749370259008,-440.0,0.00023287,4]
[364972582,1749370259017,-440.0,0.00023287,4]
[364972583,1749370259026,-681.62,0.00023287,2]
[364972584,1749370259036,-2207.65,0.00023287,4]
[364972585,1749370259046,-3194.87,0.00023287,4]
[364972586,1749370259056,-1304.44,0.00023287,4]
[364972587,1749370259065,-3087.95,0.00023287,4]
[364972588,1749370259075,-908.71,0.00023287,4]
[364972589,1749370259085,-915.87,0.00023287,4]
[364972590,1749370259095,-3150.35,0.00023287,4]
[364972591,1749370259104,-3113.45,0.00023287,4]
[364972592,1749370259114,-440.0,0.00023287,4]
[364972593,1749370259123,-303.22690168,0.00023287,4]
[364972594,1749370259133,-1725.61,0.00023287,4]
[364972595,1749370259143,-934.54,0.00023287,4]
[364972596,1749370259152,-2695.16,0.00023287,4]
[364972597,1749370259162,-440.0,0.00023287,4]
[364972598,1749370259172,-1018.44,0.00023287,4]
[364972599,1749370259181,-194.69814232,0.00023287,4]
[364972600,1749370259191,-1024.06,0.00023287,4]
[364972601,1749370259201,-800.0,0.00023293,2]
[364972602,1749370259211,-2400.0,0.00023299,2]
[364972603,1749370259221,-1042.50611979,0.00023299,2]
[364972604,1749370259231,-2000.0,0.00023299,2]
[364972605,1749370259241,-2000.0,0.00023387,2]
[364972606,1749370259250,-3000.0,0.00023389,3]
[364972607,1749370259260,-1032.51,0.000234,7]
[364972608,1749370259269,-151.71151387,0.00023402,2]
[364972609,1749370259279,-500.0,0.00023405,2]
[364972610,1749370259288,-504.04897911,0.00023419,2]
[364972611,1749370259298,-800.0,0.00023436,2]
[364972612,1749370259308,-11063.36847332,0.00023447,2]
[364972613,1749370259318,-1787.52,0.000235,7]
[364972614,1749370259328,-42565.21,0.000235,2]
[364972615,1749370259338,-182.94440693,0.00023526,2]
[364972616,1749370259347,-159.87566464,0.00023534,2]
[364972617,1749370259357,-91923.59,0.0002355,11]
[364972618,1749370259367,-115648.03,0.0002355,11]
[364972619,1749370259376,-5000.0,0.0002355,2]
[364972620,1749370259386,-500.0,0.00023559,2]
[364972621,1749370259396,-440.0,0.00023561,4]
[364972622,1749370259406,-500.0,0.00023561,2]
[364972623,1749370259417,-440.0,0.00023561,4]
[364972624,1749370259427,-791.26,0.00023561,4]
[364972625,1749370259437,-1098.08,0.00023561,4]
[364972626,1749370259447,-2602.26,0.00023561,4]
[364972627,1749370259457,-440.0,0.00023561,4]
[364972628,1749370259467,-500.16,0.00023561,4]
[364972629,1749370259477,-440.0,0.00023561,4]
[364972630,1749370259487,-1193.65,0.00023561,4]
[364972631,1749370259496,-481.17,0.00023561,4]
[364972632,1749370259506,-1228.34,0.00023561,4]
[364972633,1749370259516,-528.99631018,0.00023561,4]
[364972634,1749370259526,-343.3,0.00023561,4]
[364972635,1749370259536,-1252.61,0.00023561,4]
[364972636,1749370259546,-522.81,0.00023561,4]
[364972637,1749370259556,-236.52,0.00023561,4]
[364972638,1749370259566,-440.0,0.00023561,4]
[364972639,1749370259577,-681.62,0.00023561,2]
[364972640,1749370259586,-2207.65,0.00023561,4]
[364972641,1749370259595,-3194.87,0.00023561,4]
[364972642,1749370259605,-1304.44,0.00023561,4]
[364972643,1749370259614,-3087.95,0.00023561,4]
[364972644,1749370259624,-908.71,0.00023561,4]
[364972645,1749370259634,-915.87,0.00023561,4]
[364972646,1749370259645,-3150.35,0.00023561,4]
[364972647,1749370259654,-3113.45,0.00023561,4]
[364972648,1749370259666,-440.0,0.00023561,4]
[364972649,1749370259676,-1725.61,0.00023561,4]
[364972650,1749370259686,-934.54,0.00023561,4]
[364972651,1749370259696,-2695.16,0.00023561,4]
[364972652,1749370259705,-440.0,0.00023561,4]
[364972653,1749370259715,-1018.44,0.00023561,4]
[364972654,1749370259725,-5000.0,0.00023582,3]
[364972655,1749370259735,-3742.71,0.00023592,2]
[364972656,1749370259745,-1503.42646563,0.00023616,2]
[364972657,1749370259754,-5000.0,0.00023657,2]
[364972658,1749370259764,-239.84119403,0.00023707,2]
[364972659,1749370259775,-986.0138735,0.00023753,3]
[364972660,1749370259784,-71996.29426899,0.000238,3]
[364972661,1749370259794,-3000.0,0.000238,2]
[364972662,1749370259804,-3000.0,0.0002381,2]
[364972663,1749370259813,-3000.0,0.0002382,2]
[364972664,1749370259823,-3000.0,0.0002383,2]
[364972665,1749370259834,-440.0,0.00023835,4]
[364972666,1749370259844,-440.0,0.00023835,4]
[364972667,1749370259857,-791.26,0.00023835,4]
[364972668,1749370259866,-1098.08,0.00023835,4]
[364972669,1749370259876,-2602.26,0.00023835,4]
[364972670,1749370259886,-440.0,0.00023835,4]
[364972671,1749370259975,-500.16,0.00023835,4]
[364972672,1749370259999,-440.0,0.00023835,4]
[364972673,1749370260009,-1193.65,0.00023835,4]
[364972674,1749370260019,-481.17,0.00023835,4]
[364972675,1749370260029,-1228.34,0.00023835,4]
[364972676,1749370260040,-1252.61,0.00023835,4]
[364972677,1749370260051,-522.81,0.00023835,4]
[364972678,1749370260061,-440.0,0.00023835,4]
[364972679,1749370260071,-681.62,0.00023835,2]
[364972680,1749370260080,-2207.65,0.00023835,4]
[364972681,1749370260090,-1304.44,0.00023835,4]
[364972682,1749370260100,-3194.87,0.00023835,4]
[364972683,1749370260110,-3087.95,0.00023835,4]
[364972684,1749370260121,-908.71,0.00023835,4]
[364972685,1749370260131,-915.87,0.00023835,4]
[364972686,1749370260140,-3150.35,0.00023835,4]
[364972687,1749370260150,-3113.45,0.00023835,4]
[364972688,1749370260161,-440.0,0.00023835,4]
[364972689,1749370260171,-1725.61,0.00023835,4]
[364972690,1749370260181,-934.54,0.00023835,4]
[364972691,1749370260192,-2695.16,0.00023835,4]
[364972692,1749370260202,-440.0,0.00023835,4]
[364972693,1749370260212,-1018.44,0.00023835,4]
[364972694,1749370260223,-159.87566464,0.00023836,2]
[364972695,1749370260234,-3000.0,0.0002384,2]
[364972696,1749370260245,-3000.0,0.00023847,2]
[364972697,1749370260256,-2500.0,0.00023847,2]
[364972698,1749370260265,-3000.0,0.0002385,2]
[364972699,1749370260275,-3000.0,0.0002386,2]
[364972700,1749370260285,-3000.0,0.0002387,2]
[364972701,1749370260296,-3000.0,0.0002388,2]
[364972702,1749370260308,-3000.0,0.0002389,2]
[364972703,1749370260318,-923.89,0.000239,30]
[364972704,1749370260329,-3000.0,0.000239,2]
[364972705,1749370260339,-1764.6391439,0.000239,2]
[364972706,1749370260349,-3000.0,0.0002391,2]
[364972707,1749370260359,-3000.0,0.0002392,2]
[364972708,1749370260368,-3264.498012,0.0002393,2]
[364972709,1749370260378,-508.34367556,0.00023935,2]
[364972710,1749370260388,-800.0,0.00023951,2]
[364972711,1749370260398,-7360.60695664,0.00023993,2]
[364972712,1749370260408,-5000.0,0.00023993,2]
[364972713,1749370260417,-5000.0,0.00023993,2]
[364972714,1749370260427,-5000.0,0.00023993,2]
[364972715,1749370260438,-5000.0,0.00023993,2]
[364972716,1749370260448,-11063.36847332,0.00023994,2]
[364972717,1749370260458,-20002.558338,0.00024,2]
[364972718,1749370260468,-9168.38525416,0.00024,60]
[364972719,1749370260478,-121544.67,0.00024,30]
[364972720,1749370260488,-158.29,0.00024,2]
[364972721,1749370260498,-315.11541396,0.00024,30]
[364972722,1749370260508,-423.98131849,0.00024,7]
[364972723,1749370260518,-160.0,0.00024,7]
[364972724,1749370260527,-229.60437222,0.00024,7]
[364972725,1749370260537,-511.72434709,0.00024082,2]
[364972726,1749370260547,-800.0,0.00024087,2]
[364972727,1749370260557,-5000.0,0.00024098,2]
[364972728,1749370260566,-440.0,0.00024109,4]
[364972729,1749370260576,-500.0,0.00024109,2]
[364972730,1749370260585,-440.0,0.00024109,4]
[364972731,1749370260596,-791.26,0.00024109,4]
[364972732,1749370260607,-1098.08,0.00024109,4]
[364972733,1749370260618,-2602.26,0.00024109,4]
[364972734,1749370260627,-440.0,0.00024109,4]
[364972735,1749370260638,-500.16,0.00024109,4]
[364972736,1749370260648,-1193.65,0.00024109,4]
[364972737,1749370260658,-481.17,0.00024109,4]
[364972738,1749370260669,-1228.34,0.00024109,4]
[364972739,1749370260678,-588.0,0.00024109,2]
[364972740,1749370260689,-588.0,0.00024109,2]
[364972741,1749370260700,-588.0,0.00024109,2]
[364972742,1749370260710,-588.0,0.00024109,2]
[364972743,1749370260721,-588.0,0.00024109,2]
[364972744,1749370260733,-415.14013271,0.00024109,2]
[364972745,1749370260743,-1252.61,0.00024109,4]
[364972746,1749370260754,-522.81,0.00024109,4]
[364972747,1749370260763,-440.0,0.00024109,4]
[364972748,1749370260774,-681.62,0.00024109,2]
[364972749,1749370260785,-2207.65,0.00024109,4]
[364972750,1749370260797,-3194.87,0.00024109,4]
[364972751,1749370260809,-1304.44,0.00024109,4]
[364972752,1749370260819,-3087.95,0.00024109,4]
[364972753,1749370260830,-908.71,0.00024109,4]
[364972754,1749370260842,-915.87,0.00024109,4]
[364972755,1749370260856,-3150.35,0.00024109,4]
[364972756,1749370260866,-3113.45,0.00024109,4]
[364972757,1749370260876,-563.26217665,0.00024109,4]
[364972758,1749370260886,-1725.61,0.00024109,4]
[364972759,1749370260898,-934.54,0.00024109,4]
[364972760,1749370260908,-2695.16,0.00024109,4]
[364972761,1749370260919,-440.0,0.00024109,4]
[364972762,1749370260929,-1018.44,0.00024109,4]
[364972763,1749370260940,-206.0,0.0002411,2]
[364972764,1749370260949,-159.87566464,0.00024137,2]
[364972765,1749370260959,-500.0,0.00024147,2]
[364972766,1749370260969,-1200.0,0.00024171,2]
[364972767,1749370260978,-353.58104382,0.00024208,7]
[364972768,1749370260987,-618.58741617,0.00024233,2]
[364972769,1749370260997,-155.0,0.00024255,7]
[364972770,1749370261007,-800.0,0.00024281,2]
[364972771,1749370261016,-2000.0,0.000243,2]
[364972772,1749370261026,-3000.0,0.000243,14]
[364972773,1749370261035,-500.0,0.0002433,2]
[364972774,1749370261045,-159.011133,0.00024343,3]
[364972775,1749370261054,-5038.06489568,0.0002435,2]
[364972776,1749370261064,-796.06,0.00024367,2]
[364972777,1749370261073,-257.4,0.00024373,2]
[364972778,1749370261083,-800.0,0.00024375,2]
[364972779,1749370261092,-800.0,0.00024375,2]
[364972780,1749370261102,-69.81252599,0.00024383,7]
[364972781,1749370261112,-2000.0,0.00024383,7]
[364972782,1749370261122,-2000.0,0.00024383,7]
[364972783,1749370261131,-2000.0,0.00024383,7]
[364972784,1749370261141,-2000.0,0.00024383,7]
[364972785,1749370261151,-2000.0,0.00024383,7]
[364972786,1749370261160,-2000.0,0.00024383,7]
[364972787,1749370261171,-2000.0,0.00024383,7]
[364972788,1749370261180,-2000.0,0.00024383,7]
[364972789,1749370261190,-2000.0,0.00024383,7]
[364972790,1749370261199,-2000.0,0.00024383,7]
[364972791,1749370261209,-665.35522838,0.00024383,7]
[364972792,1749370261219,-1112.47321207,0.00024383,7]
[364972793,1749370261229,-440.0,0.00024383,4]
[364972794,1749370261238,-160.96930371,0.00024383,4]
[364972795,1749370261249,-791.26,0.00024383,4]
[364972796,1749370261260,-1098.08,0.00024383,4]
[364972797,1749370261270,-2602.26,0.00024383,4]
[364972798,1749370261280,-440.0,0.00024383,4]
[364972799,1749370261292,-500.16,0.00024383,4]
[364972800,1749370261303,-1193.65,0.00024383,4]
[364972801,1749370261312,-481.17,0.00024383,4]
[364972802,1749370261325,-1228.34,0.00024383,4]
[364972803,1749370261335,-1252.61,0.00024383,4]
[364972804,1749370261346,-522.81,0.00024383,4]
[364972805,1749370261356,-440.0,0.00024383,4]
[364972806,1749370261366,-681.62,0.00024383,2]
[364972807,1749370261377,-2207.65,0.00024383,4]
[364972808,1749370261387,-3194.87,0.00024383,4]
[364972809,1749370261397,-1304.44,0.00024383,4]
[364972810,1749370261408,-3087.95,0.00024383,4]
[364972811,1749370261418,-908.71,0.00024383,4]
[364972812,1749370261428,-915.87,0.00024383,4]
[364972813,1749370261438,-3150.35,0.00024383,4]
[364972814,1749370261448,-3113.45,0.00024383,4]
[364972815,1749370261458,-1725.61,0.00024383,4]
[364972816,1749370261468,-934.54,0.00024383,4]
[364972817,1749370261478,-2695.16,0.00024383,4]
[364972818,1749370261488,-440.0,0.00024383,4]
[364972819,1749370261498,-1018.44,0.00024383,4]
[364972820,1749370261509,-3012.60060868,0.00024395,2]
[364972821,1749370261519,-3009.48718593,0.00024395,2]
[364972822,1749370261529,-250.0,0.000244,2]
[364972823,1749370261539,-250.0,0.000244,2]
[364972824,1749370261549,-250.0,0.000244,2]
[364972825,1749370261559,-250.0,0.000244,2]
[364972826,1749370261569,-250.0,0.000244,2]
[364972827,1749370261579,-250.0,0.000244,2]
[364972828,1749370261589,-250.0,0.000244,2]
[364972829,1749370261598,-250.0,0.000244,2]
[364972830,1749370261608,-250.0,0.000244,2]
[364972831,1749370261618,-250.0,0.000244,2]
[364972832,1749370261628,-250.0,0.000244,2]
[364972833,1749370261638,-250.0,0.000244,2]
[364972834,1749370261648,-250.0,0.000244,2]
[364972835,1749370261658,-250.0,0.000244,2]
[364972836,1749370261668,-250.0,0.000244,2]
[364972837,1749370261678,-250.0,0.000244,2]
[364972838,1749370261688,-250.0,0.000244,2]
[364972839,1749370261697,-296.6,0.000244,2]
[364972840,1749370261707,-206.0,0.000244,2]
[364972841,1749370261716,-160.0,0.000244,7]
[364972842,1749370261726,-2202.77,0.000244,2]
[364972843,1749370261819,-120396.21,0.000244,7]
[364972844,1749370261838,-884402.49005163,0.000244,11]
[364972859,1749370710709,152.0,0.00025479,120]
[364972860,1749370728764,153.0,0.00025479,120]
[364972870,1749370963619,1850.199999,0.00024602,30]
[364972875,1749371120134,202.93283,0.00013699,2]
[364972889,1749371350188,-157.61872207,0.00016338,2]
[364972890,1749371350209,-163.13211168,0.00016338,2]
[364972891,1749371350232,-169.0,0.00016438,3]
[364972892,1749371350252,-352.10629267,0.00016438,2]
[364972893,1749371350273,-1529.70923453,0.00017468,2]
[364972896,1749371399145,1000.0,0.00025,120]
[364972909,1749371432803,-330.63982859,0.00016774,2]
[364972910,1749371432815,-5000.0,0.00017293,2]
[364972911,1749371432827,-3.98893679,0.00017368,2]
[364972912,1749371432840,-161.0937186,0.00017368,2]
[364972913,1749371432850,-223.88440657,0.00017468,2]
[364972914,1749371432863,-794.03628076,0.00017646,2]
[364972921,1749371439083,-283.09706874,0.00017646,2]
[364972922,1749371439093,-419.82,0.0001782,2]
[364972923,1749371439103,-1204.5994281,0.00018,2]
[364972924,1749371439112,-1200.0,0.00018081,2]
[364972925,1749371439122,-876.5481925,0.00018082,2]
[364972926,1749371439131,-159.968944,0.0001815,2]
[364972927,1749371439140,-205.78168787,0.00018603,2]
[364972928,1749371439150,-839.64,0.00018668,2]
[364972929,1749371439161,-180.61887297,0.00019076,2]
[364972930,1749371439171,-300.0,0.00019077,2]
[364972931,1749371439181,-300.0,0.00019077,2]
[364972932,1749371439191,-300.0,0.00019077,2]